bitfinex-derivatives/quotes_BTCF0:USTF0_20240907
["timestamp","ask_amount","ask_price","bid_price","bid_amount"]
[1725690539459,0.45463199,54188.0,54187.0,0.057265]
[1725690539963,0.45463199,54188.0,54187.0,0.002]
[1725690540353,0.45463199,54188.0,54187.0,0.05726273]
[1725690541451,0.45463199,54188.0,54187.0,0.05726034]
[1725690541655,0.45463199,54188.0,54187.0,0.002]
[1725690541854,0.45463199,54188.0,54187.0,0.05726134]
[1725690544049,1.60827199,54188.0,54187.0,0.05726134]
[1725690544862,0.45463199,54188.0,54187.0,0.05726134]
[1725690545865,0.45463199,54188.0,54187.0,0.002]
[1725690546467,0.39949135,54188.0,54187.0,0.002]
[1725690549371,0.45463199,54188.0,54187.0,0.002]
[1725690550568,0.45463199,54188.0,54187.0,0.0757453]
[1725690551460,0.39949135,54188.0,54187.0,0.1680413]
[1725690551971,0.39949135,54188.0,54187.0,0.094296]
[1725690552768,0.45467707,54188.0,54187.0,0.094296]
[1725690552966,0.39949135,54188.0,54187.0,0.094296]
[1725690553474,0.45467707,54188.0,54187.0,0.094296]
[1725690554475,0.45467707,54188.0,54187.0,0.23489644]
[1725690554476,0.36243686,54188.0,54187.0,0.23489644]
[1725690555665,0.30719735,54188.0,54187.0,0.1865564]
[1725690556171,0.30719735,54188.0,54187.0,0.094296]
[1725690556778,0.39949135,54188.0,54187.0,0.094296]
[1725690559572,0.30719735,54188.0,54187.0,0.094296]
[1725690559975,0.39949135,54188.0,54187.0,0.094296]
[1725690566768,0.45472639,54188.0,54187.0,0.23490025]
[1725690572578,0.30719735,54188.0,54187.0,0.23490025]
[1725690574274,0.30719735,54188.0,54187.0,0.23489356]
[1725690579081,0.30719735,54188.0,54187.0,0.2348932]
[1725690581492,0.36243239,54188.0,54187.0,0.2348932]
[1725690584080,0.45472639,54188.0,54187.0,0.2348932]
[1725690584278,0.39949135,54188.0,54187.0,0.18656599]
[1725690584787,0.39949135,54188.0,54187.0,0.094296]
[1725690585487,0.30719735,54188.0,54187.0,0.32717043]
[1725690587282,0.30719735,54188.0,54187.0,0.23490044]
[1725690587687,0.30719735,54188.0,54187.0,0.33490044]
[1725690587887,0.03188,54188.0,54187.0,0.53762671]
[1725690588093,0.03188,54188.0,54187.0,0.58427976]
[1725690589082,0.03188,54188.0,54187.0,0.58457557]
[1725690589483,0.03188,54188.0,54187.0,0.49227957]
[1725690589882,0.03188,54188.0,54187.0,0.39227957]
[1725690590091,0.03188,54188.0,54187.0,0.49227957]
[1725690591483,0.03188,54188.0,54187.0,0.33488243]
[1725690592879,0.03188,54188.0,54187.0,0.49652827]
[1725690593989,0.02988,54188.0,54187.0,0.49652827]
[1725690594188,0.02988,54188.0,54187.0,0.33488243]
[1725690594779,0.02888,54188.0,54187.0,0.33488243]
[1725690594982,0.02688,54188.0,54187.0,0.23488243]
[1725690595197,0.02688,54188.0,54187.0,0.33488243]
[1725690595994,0.02688,54188.0,54187.0,0.44551116]
[1725690596495,0.02688,54188.0,54187.0,0.33488243]
[1725690597192,0.02688,54188.0,54187.0,0.33489431]
[1725690598189,0.02688,54188.0,54187.0,0.194296]
[1725690601793,0.02688,54188.0,54187.0,0.286592]
[1725690602302,0.02688,54188.0,54187.0,1.440232]
[1725690603300,0.05528228,54198.0,54197.0,0.092279]
[1725690603501,0.05528228,54198.0,54197.0,0.192279]
[1725690603701,0.34459663,54198.0,54197.0,0.192279]
[1725690604592,0.34459663,54198.0,54197.0,0.094279]
[1725690604593,0.09216228,54198.0,54197.0,0.094279]
[1725690604799,0.46264096,54198.0,54197.0,0.102]
[1725690605111,0.37036396,54198.0,54197.0,0.2034525]
[1725690605806,0.09141669,54204.0,54197.0,0.10670808]
[1725690606098,0.09141669,54204.0,54202.0,0.82648306]
[1725690606304,0.09141669,54204.0,54203.0,0.092268]
[1725690606305,0.10428669,54204.0,54203.0,0.092268]
[1725690607797,0.10428669,54204.0,54203.0,0.093268]
[1725690607997,0.10428669,54204.0,54203.0,0.094268]
[1725690608195,0.01287,54204.0,54203.0,0.32675331]
[1725690608896,0.01287,54204.0,54203.0,0.18621099]
[1725690609100,0.01287,54204.0,54203.0,0.094268]
[1725690609407,0.01287,54204.0,54203.0,0.09888931]
[1725690612201,0.01287,54204.0,54203.0,0.27238007]
[1725690612625,0.01287,54204.0,54203.0,0.09888931]
[1725690612797,0.01287,54204.0,54203.0,0.00662131]
[1725690612995,0.01287,54204.0,54202.0,0.07349076]
[1725690612996,0.092273,54200.0,54196.0,0.14739656]
[1725690613196,0.192273,54200.0,54195.0,0.00451096]
[1725690613396,0.27517483,54199.0,54198.0,0.092276]
[1725690613701,0.28804483,54199.0,54198.0,0.092276]
[1725690617607,0.28804483,54199.0,54198.0,0.093276]
[1725690618011,0.28804483,54199.0,54198.0,0.094276]
[1725690622211,0.01287,54199.0,54198.0,0.284276]
[1725690622405,0.01287,54199.0,54198.0,0.33946129]
[1725690622611,0.01287,54199.0,54198.0,0.14946129]
[1725690623113,0.01287,54199.0,54198.0,0.14946573]
[1725690623308,0.28869308,54199.0,54198.0,0.14946573]
[1725690623510,0.28869308,54199.0,54198.0,0.094276]
[1725690623713,0.43409308,54199.0,54198.0,0.094276]
[1725690624414,0.52636808,54199.0,54198.0,0.002]
[1725690624617,0.52636808,54199.0,54188.0,0.09194299]
[1725690624618,0.55356,54197.0,54191.0,0.07349076]
[1725690624813,0.55356,54197.0,54184.0,0.05519676]
[1725690624814,0.092299,54185.0,54184.0,0.05519676]
[1725690625008,0.092299,54185.0,54181.0,0.05519676]
[1725690625009,0.19,54185.0,54181.0,0.05519676]
[1725690625305,0.19,54185.0,54178.0,0.16579976]
[1725690625306,0.2169,54184.0,54178.0,0.092309]
[1725690625505,0.2169,54184.0,54177.0,0.05519676]
[1725690625506,0.282308,54180.0,54177.0,0.05519676]
[1725690625705,0.282308,54180.0,54175.0,0.05519676]
[1725690625905,0.27779205,54179.0,54178.0,0.092311]
[1725690626420,0.01295,54179.0,54178.0,0.092311]
[1725690626807,0.28885529,54179.0,54178.0,0.092311]
[1725690627022,0.28885529,54179.0,54178.0,0.097311]
[1725690627623,0.28885529,54179.0,54178.0,0.101311]
[1725690635131,0.1946104,54187.0,54178.0,0.101311]
[1725690635132,0.09227,54203.0,54178.0,0.10595604]
[1725690635322,0.09227,54203.0,54181.0,0.19]
[1725690635323,0.092293,54189.0,54181.0,0.19]
[1725690635525,0.27609559,54184.0,54181.0,0.19]
[1725690635716,0.27609559,54184.0,54183.0,0.092302]
[1725690636025,0.01288,54184.0,54182.0,0.072]
[1725690636221,0.01288,54184.0,54183.0,0.092302]
[1725690636412,0.01288,54184.0,54183.0,0.184604]
[1725690636618,0.01288,54184.0,54183.0,0.23980076]
[1725690638112,0.01288,54184.0,54183.0,0.184604]
[1725690638317,0.01288,54184.0,54183.0,0.092302]
[1725690639026,0.01288,54184.0,54183.0,0.184604]
[1725690639325,0.01288,54184.0,54183.0,0.092302]
[1725690639519,0.01288,54184.0,54183.0,0.184604]
[1725690641828,0.092282,54195.0,54193.0,0.092285]
[1725690642131,0.2786606,54194.0,54193.0,0.092285]
[1725690642718,0.2915406,54194.0,54193.0,0.092285]
[1725690643435,0.3838246,54194.0,54193.0,0.093285]
[1725690644017,0.3838246,54194.0,54193.0,0.092285]
[1725690644223,0.3878246,54194.0,54193.0,0.093285]
[1725690644632,0.3878246,54194.0,54193.0,0.094285]
[1725690655839,0.3878246,54194.0,54193.0,0.002]
[1725690656025,0.4801086,54194.0,54193.0,0.002]
[1725690656231,0.48477777,54194.0,54193.0,0.002]
[1725690656433,0.48477777,54194.0,54188.0,0.05511644]
[1725690656434,0.092292,54189.0,54188.0,0.05511644]
[1725690656629,0.092292,54189.0,54185.0,0.07348859]
[1725690656630,0.295172,54189.0,54185.0,0.05511644]
[1725690656842,0.295172,54189.0,54183.0,0.092302]
[1725690656843,0.092299,54185.0,54184.0,0.05511644]
[1725690657233,0.092301,54184.0,54183.0,0.092302]
[1725690657539,0.105181,54184.0,54183.0,0.092302]
[1725690657740,0.105181,54184.0,54183.0,0.09698397]
[1725690659236,0.105181,54184.0,54183.0,0.17047256]
[1725690660335,0.105181,54184.0,54183.0,0.16579059]
[1725690660535,0.105181,54184.0,54183.0,0.092302]
[1725690661841,0.38281284,54184.0,54183.0,0.092302]
[1725690662240,0.38281284,54184.0,54183.0,0.16579059]
[1725690662443,0.38281284,54184.0,54183.0,0.092302]
[1725690664051,0.29051184,54184.0,54183.0,0.39965797]
[1725690664344,0.29051184,54184.0,54183.0,0.30771498]
[1725690666748,0.29051184,54184.0,54183.0,0.39989049]
[1725690667447,0.29051184,54184.0,54183.0,0.30771498]
[1725690667849,0.29051184,54184.0,54183.0,0.39989228]
[1725690668550,0.29051184,54184.0,54183.0,0.30771498]
[1725690670056,0.29051184,54184.0,54183.0,0.30770966]
[1725690672956,0.29051184,54184.0,54183.0,0.39990546]
[1725690673142,0.29051184,54184.0,54183.0,0.39990921]
[1725690673753,0.29051184,54184.0,54183.0,0.30770966]
[1725690674342,0.29051184,54184.0,54183.0,0.39991211]
[1725690676059,0.29051184,54184.0,54183.0,0.30770966]
[1725690676855,0.29051184,54184.0,54183.0,0.32512154]
[1725690677059,0.29051184,54184.0,54183.0,0.092302]
[1725690677860,0.38281284,54184.0,54183.0,0.092302]
[1725690678852,0.29051184,54184.0,54180.0,0.18451888]
[1725690679052,0.38281284,54184.0,54183.0,0.07377274]
[1725690680458,0.38734955,54184.0,54183.0,0.07377274]
[1725690682355,0.38734955,54184.0,54180.0,0.00458933]
[1725690682356,0.092302,54183.0,54182.0,0.07377274]
[1725690682560,0.205182,54183.0,54182.0,0.07377274]
[1725690683756,0.4810926,54183.0,54182.0,0.07377274]
[1725690684152,0.4810926,54183.0,54182.0,0.07477274]
[1725690685761,0.4810926,54183.0,54178.0,0.09221188]
[1725690685762,1.6347726,54183.0,54180.0,0.05532441]
[1725690685962,1.6347726,54183.0,54171.0,0.092322]
[1725690685963,0.1,54181.0,54178.0,0.05532441]
[1725690686260,0.092311,54178.0,54176.0,0.05532441]
[1725690686466,0.17357798,54177.0,54174.0,0.05532441]
[1725690686656,0.092318,54174.0,54173.0,0.05532441]
[1725690686854,0.192318,54174.0,54173.0,0.05532441]
[1725690687053,0.47053497,54174.0,54173.0,0.05532441]
[1725690687563,0.47053497,54174.0,54172.0,0.05532441]
[1725690687564,0.092319,54173.0,54172.0,0.05532441]
[1725690687963,0.37922941,54173.0,54172.0,0.05532441]
[1725690688464,0.092321,54172.0,54171.0,0.15216839]
[1725690688661,0.090321,54172.0,54171.0,0.15216839]
[1725690689265,0.103201,54172.0,54171.0,0.15216839]
[1725690690565,0.104201,54172.0,54171.0,0.15216839]
[1725690691363,0.104201,54172.0,54171.0,0.09684398]
[1725690699169,0.01388,54172.0,54171.0,0.15216839]
[1725690704371,0.01388,54172.0,54171.0,0.09684398]
[1725690708878,0.106201,54172.0,54171.0,0.15212131]
[1725690709068,0.106201,54172.0,54171.0,0.09684398]
[1725690709274,0.106201,54172.0,54171.0,0.15212131]
[1725690711570,0.106201,54172.0,54171.0,0.09684398]
[1725690713478,0.106201,54172.0,54171.0,0.17061672]
[1725690714383,0.106201,54172.0,54171.0,0.09684398]
[1725690716479,0.17977898,54172.0,54171.0,0.09684398]
[1725690721388,0.106201,54172.0,54171.0,0.09684398]
[1725690728598,0.106201,54172.0,54152.0,0.27589871]
[1725690728599,0.092334,54165.0,54160.0,0.11033158]
[1725690728791,0.092334,54165.0,54147.0,0.25603399]
[1725690728792,0.184674,54163.0,54162.0,0.07385192]
[1725690729096,0.184674,54163.0,54159.0,0.02477573]
[1725690729097,0.184684,54160.0,54159.0,0.02477573]
[1725690729294,0.184686,54159.0,54158.0,0.05539883]
[1725690729479,0.81995387,54159.0,54145.0,0.05539883]
[1725690729790,0.081367,54145.0,54143.0,0.05539883]
[1725690729988,0.19,54144.0,54143.0,0.05539883]
[1725690730291,0.49258218,54144.0,54139.0,0.05539883]
[1725690730496,0.49258218,54144.0,54136.0,0.25659883]
[1725690730497,0.19,54140.0,54136.0,0.25659883]
[1725690730789,0.19,54143.0,54137.0,0.05539883]
[1725690730994,0.20541,54143.0,54137.0,0.05539883]
[1725690731294,0.46853696,54143.0,54136.0,0.2611478]
[1725690731488,0.46853696,54143.0,54136.0,0.20574897]
[1725690731687,0.19288,54143.0,54136.0,0.2611478]
[1725690731993,0.19288,54143.0,54138.0,0.092379]
[1725690731994,0.27538381,54142.0,54138.0,0.092379]
[1725690732186,0.001,54140.0,54138.0,0.092379]
[1725690732388,0.00388,54140.0,54138.0,0.092379]
[1725690732699,0.00288,54140.0,54139.0,0.007]
[1725690733285,0.00288,54140.0,54138.0,0.084379]
[1725690734583,0.001,54143.0,54139.0,0.74412]
[1725690734789,0.00288,54143.0,54139.0,0.19]
[1725690735086,0.001,54140.0,54139.0,0.282377]
[1725690735793,0.01388,54140.0,54139.0,0.282377]
[1725690735991,0.01288,54140.0,54139.0,0.295377]
[1725690736591,0.01288,54140.0,54139.0,1.449497]
[1725690737801,0.01388,54140.0,54139.0,1.449497]
[1725690738489,0.01388,54140.0,54139.0,0.849497]
[1725690738800,0.01388,54140.0,54139.0,0.295377]
[1725690743290,0.01388,54140.0,54139.0,0.387754]
[1725690743698,0.14089536,54158.0,54145.0,0.092367]
[1725690743899,0.09234,54161.0,54157.0,0.19]
[1725690744099,0.10522,54161.0,54157.0,0.19]
[1725690744401,0.38363775,54161.0,54160.0,0.092341]
[1725690746200,0.39063775,54161.0,54160.0,0.093341]
[1725690748203,0.39063775,54161.0,54160.0,0.001]
[1725690748794,1.22689775,54161.0,54160.0,0.001]
[1725690748990,1.22689775,54161.0,54147.0,0.092363]
[1725690748991,0.19,54154.0,54147.0,0.092363]
[1725690749192,0.092362,54149.0,54147.0,0.092363]
[1725690749393,0.105242,54149.0,54147.0,0.092363]
[1725690749791,0.105242,54149.0,54148.0,0.092362]
[1725690750907,0.01288,54149.0,54148.0,0.092362]
[1725690751708,0.01488,54149.0,54148.0,0.092362]
[1725690752599,0.01488,54149.0,54148.0,0.282362]
[1725690756797,0.01488,54149.0,54148.0,0.092362]
[1725690757203,0.01488,54149.0,54148.0,0.14738644]
[1725690758393,0.10724,54149.0,54148.0,0.092362]
[1725690761809,0.01488,54149.0,54148.0,0.092362]
[1725690762006,0.01488,54149.0,54148.0,0.192362]
[1725690764010,0.01488,54149.0,54148.0,0.092362]
[1725690768215,0.01288,54149.0,54148.0,0.092362]
[1725690768511,0.02288,54149.0,54148.0,0.093362]
[1725690776711,0.02288,54149.0,54148.0,0.1856769]
[1725690777117,0.02288,54149.0,54148.0,0.32637985]
[1725690778319,0.02288,54149.0,54148.0,0.23406495]
[1725690779215,0.07796347,54149.0,54148.0,0.23406495]
[1725690779610,0.02288,54149.0,54148.0,0.23406495]
[1725690779830,0.07799585,54149.0,54148.0,0.23406495]
[1725690780024,0.02288,54149.0,54148.0,0.23406495]
[1725690780519,0.02288,54149.0,54148.0,0.42406495]
[1725690780719,0.02288,54149.0,54148.0,0.71912053]
[1725690780920,0.05511585,54154.0,54151.0,0.092357]
[1725690781127,0.05511585,54155.0,54153.0,0.19]
[1725690781312,0.06800585,54155.0,54154.0,0.37494397]
[1725690781512,0.05511585,54155.0,54154.0,0.37494397]
[1725690781716,0.05511585,54156.0,54155.0,0.09235]
[1725690781910,0.06800585,54156.0,54155.0,0.09235]
[1725690782518,0.01289,54156.0,54155.0,0.09235]
[1725690782918,0.01289,54156.0,54155.0,0.23303508]
[1725690783117,0.01289,54156.0,54155.0,1.47934508]
[1725690783317,0.02689,54156.0,54155.0,1.62999898]
[1725690783921,0.19599421,54169.0,54166.0,0.092331]
[1725690784124,0.16033385,54169.0,54166.0,0.0552383]
[1725690784324,0.16033385,54169.0,54165.0,0.19911436]
[1725690784325,0.27684768,54168.0,54165.0,0.19911436]
[1725690784524,0.27684768,54168.0,54165.0,0.00911436]
[1725690784722,0.27684768,54168.0,54163.0,0.0729]
[1725690784723,0.28973768,54168.0,54163.0,0.0729]
[1725690784921,0.09239,54167.0,54165.0,0.13455]
[1725690785116,0.09239,54167.0,54165.0,0.0791]
[1725690785311,0.10528,54167.0,54166.0,0.001]
[1725690785517,0.10528,54167.0,54164.0,0.0706]
[1725690785821,0.10528,54167.0,54166.0,0.092331]
[1725690786121,0.10528,54167.0,54166.0,0.19]
[1725690786328,0.10528,54167.0,54165.0,0.08105247]
[1725690786624,0.10528,54167.0,54166.0,0.13455]
[1725690786820,0.10528,54167.0,54166.0,0.282331]
[1725690787029,0.10528,54167.0,54166.0,0.19]
[1725690787217,0.10528,54167.0,54166.0,0.13455]
[1725690787623,0.01289,54167.0,54166.0,0.13455]
[1725690787823,0.01289,54167.0,54166.0,0.226881]
[1725690788424,0.01289,54167.0,54166.0,0.227881]
[1725690789918,0.01289,54167.0,54166.0,0.193331]
[1725690793328,0.01289,54167.0,54166.0,0.20241452]
[1725690793530,0.01289,54167.0,54166.0,0.193331]
[1725690803632,0.29755,54167.0,54166.0,0.001]
[1725690803837,0.57306305,54167.0,54166.0,0.001]
[1725690804225,0.6281789,54167.0,54166.0,0.001]
[1725690805344,0.57306305,54167.0,54166.0,0.001]
[1725690807340,0.64650768,54167.0,54166.0,0.001]
[1725690808441,0.57306305,54167.0,54166.0,0.001]
[1725690809138,1.72690305,54167.0,54166.0,0.001]
[1725690810942,1.12690305,54167.0,54166.0,0.001]
[1725690812841,1.91103884,54167.0,54166.0,0.001]
[1725690813234,1.81923305,54167.0,54166.0,0.001]
[1725690813434,1.91095141,54167.0,54166.0,0.001]
[1725690816436,1.81923305,54167.0,54166.0,0.001]
[1725690816737,1.84916484,54167.0,54166.0,0.001]
[1725690817045,0.38073305,54167.0,54166.0,0.101]
[1725690817243,0.06790736,54167.0,54166.0,0.193331]
[1725690817546,0.01289,54167.0,54166.0,0.193331]
[1725690818237,0.01289,54167.0,54166.0,0.19785123]
[1725690818842,0.10522,54167.0,54166.0,0.19785123]
[1725690820150,0.10522,54167.0,54166.0,0.09785123]
[1725690824241,0.01289,54167.0,54166.0,0.09785123]
[1725690825253,0.06790736,54167.0,54166.0,0.09785123]
[1725690825442,0.01289,54167.0,54166.0,0.09785123]
[1725690828153,0.01289,54167.0,54166.0,0.17145096]
[1725690828351,0.01289,54167.0,54166.0,0.09785123]
[1725690834554,0.01289,54167.0,54166.0,0.19018223]
[1725690841961,0.01289,54167.0,54166.0,0.29018223]
[1725690844354,0.01289,54167.0,54166.0,0.19785123]
[1725690848965,0.14085636,54181.0,54179.0,0.092309]
[1725690849160,0.092306,54181.0,54179.0,0.192309]
[1725690849362,0.35787063,54180.0,54179.0,0.192309]
[1725690849760,0.29097063,54180.0,54179.0,0.192309]
[1725690851369,0.29097063,54180.0,54179.0,0.193309]
[1725690851760,0.29097063,54180.0,54179.0,0.19781207]
[1725690852658,0.01288,54180.0,54179.0,0.19781207]
[1725690855565,0.01288,54180.0,54179.0,0.09781207]
[1725690855767,0.06797295,54180.0,54179.0,0.09781207]
[1725690855966,0.01288,54180.0,54179.0,0.09781207]
[1725690856873,0.105188,54180.0,54179.0,0.09781207]
[1725690857667,0.105188,54180.0,54179.0,0.001]
[1725690857868,1.69993464,54180.0,54179.0,0.001]
[1725690858168,1.69993464,54180.0,54171.0,0.092323]
[1725690858169,0.092322,54172.0,54171.0,0.092323]
[1725690858669,0.105202,54172.0,54171.0,0.092323]
[1725690859370,0.092326,54170.0,54168.0,0.07373828]
[1725690859564,0.091326,54170.0,54169.0,0.092326]
[1725690859768,0.104206,54170.0,54169.0,0.092326]
[1725690861074,0.104206,54170.0,54169.0,0.093326]
[1725690862274,0.104206,54170.0,54169.0,0.16706428]
[1725690862570,0.104206,54170.0,54169.0,0.093326]
[1725690863167,0.104206,54170.0,54169.0,0.16706428]
[1725690867971,0.104206,54170.0,54169.0,0.093326]
[1725690869868,0.15934371,54170.0,54169.0,0.093326]
[1725690870867,0.38221525,54170.0,54169.0,0.093326]
[1725690872077,0.4373569,54170.0,54169.0,0.093326]
[1725690873575,0.4373569,54170.0,54169.0,0.001]
[1725690875874,0.38221525,54170.0,54169.0,0.001]
[1725690878581,1.12834125,54170.0,54169.0,0.001]
[1725690878881,0.09234,54162.0,54159.0,0.07373828]
[1725690879070,0.09234,54162.0,54161.0,0.09234]
[1725690879275,0.10522,54162.0,54161.0,0.09234]
[1725690880186,0.11288,54162.0,54157.0,0.22530335]
[1725690880377,0.192345,54158.0,54157.0,0.00456507]
[1725690880687,0.192345,54158.0,54154.0,0.072]
[1725690880688,0.1,54158.0,54154.0,0.072]
[1725690880881,0.11359,54158.0,54154.0,0.0765249]
[1725690881073,0.19235,54155.0,54154.0,0.0765249]
[1725690881278,0.19235,54155.0,54154.0,0.0045249]
[1725690881474,0.092354,54153.0,54149.0,0.23276]
[1725690881883,0.105234,54153.0,54149.0,0.23276]
[1725690882275,0.105234,54153.0,54150.0,0.092358]
[1725690882492,0.100234,54153.0,54150.0,0.092358]
[1725690883677,0.092356,54152.0,54150.0,0.092358]
[1725690883883,0.105236,54152.0,54150.0,0.092358]
[1725690885287,0.105236,54152.0,54150.0,0.102358]
[1725690885787,0.106236,54152.0,54150.0,0.101358]
[1725690886692,0.092357,54151.0,54150.0,0.101358]
[1725690886879,0.106236,54152.0,54150.0,0.101358]
[1725690887687,0.092357,54151.0,54150.0,0.101358]
[1725690887890,0.092357,54151.0,54150.0,0.009]
[1725690888088,0.37063442,54151.0,54150.0,0.009]
[1725690888684,0.38351442,54151.0,54150.0,0.009]
[1725690888883,0.082359,54150.0,54149.0,0.07642721]
[1725690889384,0.095239,54150.0,54149.0,0.07642721]
[1725690890095,0.095239,54150.0,54149.0,0.08742721]
[1725690891780,0.095239,54150.0,54149.0,0.17978721]
[1725690891983,0.01288,54150.0,54149.0,0.17978721]
[1725690901399,0.092352,54154.0,54153.0,0.092354]
[1725690902002,0.105232,54154.0,54153.0,0.092354]
[1725690902701,0.105232,54154.0,54153.0,0.097354]
[1725690903599,0.01288,54154.0,54153.0,0.097354]
[1725690904101,0.01288,54154.0,54153.0,0.15259392]
[1725690905196,0.01288,54154.0,54153.0,0.27109228]
[1725690905499,0.01288,54154.0,54153.0,0.197354]
[1725690905893,0.04855036,54165.0,54153.0,1.49203551]
[1725690906097,0.14746549,54166.0,54165.0,0.092333]
[1725690906294,0.16034549,54166.0,54165.0,0.092333]
[1725690906495,0.43819359,54166.0,54165.0,0.092333]
[1725690906703,0.3830611,54166.0,54165.0,0.092333]
[1725690908193,0.43819359,54166.0,54165.0,0.14759355]
[1725690909098,0.43819359,54166.0,54165.0,0.14859355]
[1725690909099,0.44719359,54166.0,54165.0,0.14859355]
[1725690909300,0.44719359,54166.0,54165.0,0.093333]
[1725690909803,0.44719359,54166.0,54165.0,0.14859355]
[1725690910396,0.3920611,54166.0,54165.0,0.093333]
[1725690913703,0.2997281,54166.0,54165.0,0.193333]
[1725690914407,0.02188,54166.0,54165.0,0.19786274]
[1725690914600,0.02188,54166.0,54165.0,0.29019574]
[1725690915105,0.02188,54166.0,54165.0,0.91771648]
[1725690915304,0.02188,54166.0,54165.0,0.84403574]
[1725690915697,0.02188,54166.0,54165.0,0.91771648]
[1725690916707,0.02188,54166.0,54165.0,0.36387648]
[1725690917998,0.02188,54166.0,54165.0,0.29019574]
[1725690924505,0.02188,54166.0,54165.0,0.09786274]
[1725690924711,0.02188,54166.0,54165.0,0.19786274]
[1725690926203,0.02188,54166.0,54165.0,0.25303764]
[1725690926404,0.02188,54166.0,54165.0,0.19786274]
[1725690926704,0.02188,54166.0,54165.0,0.25303764]
[1725690927302,0.02188,54166.0,54165.0,0.19786274]
[1725690927508,0.02188,54166.0,54165.0,0.25306702]
[1725690928111,0.02188,54166.0,54165.0,0.19786274]
[1725690931417,0.02188,54166.0,54165.0,0.27154348]
[1725690932012,0.02188,54166.0,54165.0,0.17154348]
[1725690932324,0.114211,54166.0,54165.0,0.09786274]
[1725690934515,0.16934349,54166.0,54165.0,0.17154348]
[1725690935622,0.16934349,54166.0,54165.0,0.09786274]
[1725690936307,0.114211,54166.0,54165.0,0.09786274]
[1725690937719,0.02188,54166.0,54165.0,0.09786274]
[1725690938309,0.02188,54166.0,54165.0,0.33061669]
[1725690939424,0.02188,54166.0,54165.0,0.23851576]
[1725690940018,0.02188,54166.0,54165.0,0.33084876]
[1725690942327,0.02188,54166.0,54165.0,0.44152308]
[1725690944421,0.02188,54166.0,54165.0,0.54152308]
[1725690944622,0.02188,54166.0,54165.0,0.23851166]
[1725690944822,0.02188,54166.0,54165.0,0.33851166]
[1725690946924,0.02188,54166.0,54165.0,0.23851166]
[1725690947123,0.02188,54166.0,54165.0,0.53229726]
[1725690947429,0.02188,54166.0,54165.0,0.67934395]
[1725690948632,0.02188,54166.0,54165.0,0.58701095]
[1725690949331,0.02188,54166.0,54165.0,0.53229726]
[1725690949924,0.02188,54166.0,54165.0,0.43996426]
[1725690952827,0.02188,54166.0,54165.0,0.53229726]
[1725690954335,0.02188,54166.0,54165.0,0.67875892]
[1725690957038,0.02188,54166.0,54165.0,0.53229726]
[1725690961029,0.01288,54166.0,54165.0,0.53429726]
[1725690961230,0.01288,54166.0,54165.0,1.68813726]
[1725690961829,0.04855036,54179.0,54178.0,0.092311]
[1725690962026,0.14630999,54184.0,54177.0,0.092312]
[1725690962027,0.05520083,54183.0,54177.0,0.092312]
[1725690962227,0.01288,54183.0,54182.0,0.24757878]
[1725690962839,0.1461,54184.0,54183.0,0.092302]
[1725690964037,0.1571,54184.0,54183.0,0.093302]
[1725690964540,0.20130083,54184.0,54183.0,0.092302]
[1725690964732,0.21230083,54184.0,54183.0,0.093302]
[1725690964933,0.30460183,54184.0,54183.0,0.14857678]
[1725690965237,0.249401,54184.0,54183.0,0.093302]
[1725690965430,0.30460183,54184.0,54183.0,0.14857678]
[1725690966443,0.30460183,54184.0,54183.0,0.15315638]
[1725690968028,0.31748183,54184.0,54183.0,0.15315638]
[1725690969235,0.262281,54184.0,54183.0,0.15315638]
[1725690969835,0.16998,54184.0,54183.0,0.15315638]
[1725690971337,0.16998,54184.0,54183.0,0.0978816]
[1725690971739,0.22519098,54184.0,54183.0,0.0978816]
[1725690972447,0.16998,54184.0,54183.0,0.0978816]
[1725690974335,0.16998,54184.0,54183.0,0.05628247]
[1725690974336,1.39716999,54184.0,54183.0,0.05628247]
[1725690974545,0.092302,54183.0,54177.0,0.05528442]
[1725690974746,0.092318,54174.0,54173.0,0.05528442]
[1725690975056,0.092318,54174.0,54172.0,0.05528442]
[1725690975057,0.092319,54173.0,54172.0,0.05528442]
[1725690975237,0.315819,54173.0,54172.0,0.05528442]
[1725690975443,1.14520862,54173.0,54172.0,0.05528442]
[1725690975640,1.15808862,54173.0,54172.0,0.05528442]
[1725690976149,1.15708862,54173.0,54172.0,0.05528442]
[1725690977853,0.092321,54172.0,54171.0,0.092322]
[1725690978551,0.092323,54171.0,54170.0,0.00453708]
[1725690978749,0.092323,54171.0,54169.0,0.07369954]
[1725690979648,0.104203,54171.0,54169.0,0.07369954]
[1725690980042,0.106203,54171.0,54169.0,0.07369954]
[1725690980553,0.106203,54171.0,54169.0,0.07835197]
[1725690981144,0.092325,54170.0,54169.0,0.07835197]
[1725690981352,0.105205,54170.0,54169.0,0.07835197]
[1725690982344,0.105205,54170.0,54169.0,0.00465243]
[1725690982553,0.105205,54170.0,54168.0,0.16602654]
[1725690982751,0.107205,54170.0,54169.0,0.05527681]
[1725690984251,0.107205,54170.0,54169.0,0.092326]
[1725690985147,0.107205,54170.0,54169.0,0.14758542]
[1725690986845,0.107205,54170.0,54169.0,0.092326]
[1725690988357,0.107205,54170.0,54168.0,0.05996034]
[1725690988358,0.092326,54169.0,54168.0,0.05996034]
[1725690988558,0.092326,54169.0,54168.0,0.00470092]
[1725690988756,0.092328,54168.0,54167.0,0.14758742]
[1725690989251,0.105208,54168.0,54167.0,0.092328]
[1725690989555,0.105208,54168.0,54167.0,0.14756123]
[1725690990361,0.105208,54168.0,54167.0,0.092328]
[1725690990652,0.105208,54168.0,54167.0,0.09704917]
[1725690992858,0.105208,54168.0,54167.0,0.19704917]
[1725690994470,0.01288,54168.0,54167.0,0.19704917]
[1725690994659,0.01288,54168.0,54167.0,0.27074871]
[1725690995265,0.01288,54168.0,54167.0,0.19704917]
[1725690995665,0.02188,54168.0,54167.0,0.19804917]
[1725690996053,0.02188,54168.0,54167.0,0.27169737]
[1725690996258,0.02188,54168.0,54167.0,0.19804917]
[1725690996660,0.01988,54168.0,54167.0,0.19804917]
[1725690998057,0.01988,54168.0,54167.0,0.27169737]
[1725690998656,0.02188,54168.0,54167.0,0.27169737]